[Event "German Bundesliga 2023-24"]
[Site "Germany"]
[Date "2024.02.23"]
[Round "9.33"]
[White "Tregubov, Pavel V."]
[Black "Warmerdam, Max"]
[Result "0-1"]
[ECO "B51"]
[WhiteElo "2567"]
[BlackElo "2636"]
[Annotator "TA"]
[PlyCount "84"]
[EventDate "2023.10.20"]
[EventType "team-tourn"]
[EventCountry "GER"]
[SourceTitle "playchess.com"]
[Source "ChessBase"]
[SourceQuality "1"]
[TimeControl "40/6000+30:3000+30"]

{[%evp 9,84,6,23,16,20,23,23,33,15,25,32,0,18,-19,-25,-22,-31,-31,-28,-42,-35,-50,-38,-52,-40,-67,-68,-52,-56,-91,-42,-33,-27,-37,-35,-62,-56,-61,-62,-87,-68,-136,-58,-61,-61,-47,-61,-100,-100,-93,-80,-136,-110,-132,-132,-128,-125,-126,-130,-171,-168,-214,-208,-215,-181,-202,-192,-231,-212,-242,-248,-381,-359,-352,-350,-336,-320]} 1. e4 {[%emt 0:00:03]} c5 {[%emt 0:00:07]} 2. Nf3 {[%emt 0:00:39]} d6 {[%emt 0:00:24]} 3. Bb5+ {[%emt 0:00:13]} Nd7 {[%emt 0:01:08]} 4. Ba4 {[%emt 0:00:21]} Ngf6 {[%emt 0:00:22]} 5. O-O {[%emt 0:00:14]} g6 {[%emt 0:02:03]} 6. Re1 {[%emt 0:00:24]} Bg7 {[%emt 0:00:25]} 7. c3 {[%emt 0:00:16]} O-O {[%emt 0:00:45]} 8. d4 {[%emt 0:00:10] White has an edge.} Qc7 {[%emt 0:00:58]} 9. Qe2 {[%emt 0:08:49]} e6 {[%emt 0:01:49]} 10. Bb3 {[%emt 0:25:45]} b5 {[%emt 0:19:11]} 11. e5 {[%emt 0:03:05]} dxe5 {[%emt 0:05:31]} 12. dxe5 {[%emt 0:00:11]} Nd5 {[%emt 0:00:32]} 13. Na3 {[%emt 0:03:13]} a6 {[%emt 0:04:49]} 14. c4 {[%emt 0:00:14]} bxc4 {[%emt 0:05:44]} 15. Nxc4 {[%emt 0:00:14]} a5 {[%emt 0:00:28]} 16. a3 {[%emt 0:01:57]} Ba6 {[%emt 0:01:59]} 17. Qe4 {[%emt 0:01:43]} N5b6 {[%emt 0:09:33]} 18. Bf4 {[%emt 0:05:33]} Rab8 {[%emt 0:12:09]} 19. Nfd2 {[%emt 0:13:30]} Nxc4 {[%emt 0:04:49]} (19... Nd5 $17 {Strongly threatening ...Nxf4.} 20. Bg3 Bxc4 21. Qxc4 Bxe5 (21... Nxe5 22. Qe2 $11)) 20. Bxc4 $15 {[%emt 0:01:38]} Bb7 {[%emt 0:00:12]} 21. Qe3 {[%emt 0:06:46]} Rfd8 {[%emt 0:01:43][%cal Og7e5]} 22. Qg3 {[%emt 0:06:30]} h6 {[%emt 0:06:12] ...g5 would now be deadly.} 23. h4 {[%emt 0:03:45]} Nb6 {[%emt 0:01:30][%cal Od8d2] ...Rxd2! is the strong threat.} 24. Rac1 {[%emt 0:00:26]} Rd4 $1 {[%emt 0:01:05]} 25. b3 {[%emt 0:14:03] [#]} (25. Ba2 $15) 25... Rbd8 {[%emt 0:05:06] Black is more active.} (25... Qd8 $1 $17 26. Nf3 Bxf3 27. Qxf3 Qxh4 (27... Nxc4 $2 28. bxc4 Qxh4 29. g3 $19)) 26. Nf3 {[%emt 0:01:01]} Bxf3 {[%emt 0:01:53]} 27. Qxf3 {[%emt 0:00:08]} a4 {[%emt 0:01:22]} 28. Bg3 {[%emt 0:02:18] White is on the road to losing.} Nxc4 {[%emt 0:00:55]} 29. bxc4 {[%emt 0:01:29]} Qd7 {[%emt 0:04:01]} 30. Rc3 {[%emt 0:04:10]} (30. Bf4 $142) 30... Rd1 $17 {[%emt 0:07:48]} 31. Rxd1 {[%emt 0:00:50]} Qxd1+ {[%emt 0:00:04]} 32. Qxd1 {[%emt 0:00:41]} Rxd1+ {[%emt 0:00:06][%mdl 4096] Endgame. KRB-KRB} 33. Kh2 {[%emt 0:00:04]} g5 {[%emt 0:05:26]} 34. hxg5 {[%emt 0:04:29]} hxg5 {[%emt 0:00:05]} 35. Kh3 {[%emt 0:00:06] [#]} (35. f4 {is a better defense.}) 35... Kh7 $1 $19 {[%emt 0:00:46]} 36. f4 {[%emt 0:01:10]} gxf4 {[%emt 0:02:22]} 37. Bxf4 {[%emt 0:00:05]} Re1 {[%emt 0:00:17]} 38. Re3 {[%emt 0:02:24]} Rc1 {[%emt 0:00:11]} 39. Re4 {[%emt 0:00:46]} Rc3+ {[%emt 0:00:05]} 40. g3 {[%emt 0:00:25]} (40. Re3 $142 Rxc4 41. g3) 40... Bh6 {[%emt 0:02:31]} 41. Kg4 {[%emt 0:04:29]} Rxa3 {[%emt 0:01:39]} 42. Re1 {[%emt 0:00:06] Threatens to win with Rh1.} Kg6 {[%emt 0:03:39] Weighted Error Value: White=0.22 (precise) /Black=0.08 (flawless) .  Mistake:       	White=4     	Black=2      Inaccurate:     	White=7     	---        OK:         	White=9     	Black=21     Strong:       	---       	Black=1} 0-1

[Event "German Bundesliga 2023-24"]
[Site "Germany"]
[Date "2024.02.23"]
[Round "9.34"]
[White "Ragger, Markus"]
[Black "Vrolijk, Liam"]
[Result "1/2-1/2"]
[ECO "C88"]
[WhiteElo "2615"]
[BlackElo "2569"]
[Annotator "TA"]
[PlyCount "63"]
[EventDate "2023.10.20"]
[EventType "team-tourn"]
[EventCountry "GER"]
[SourceTitle "playchess.com"]
[Source "ChessBase"]
[SourceQuality "1"]
[TimeControl "40/6000+30:3000+30"]

{[%evp 20,63,38,12,54,56,66,57,38,39,54,38,48,27,48,40,43,13,25,21,18,23,18,12,83,88,300,286,360,17,17,20,12,0,0,0,0,0,0,0,0,0,0,0,0,0]} 1. e4 {[%emt 0:00:01]} e5 {[%emt 0:00:08]} 2. Nf3 {[%emt 0:00:03]} Nc6 {[%emt 0:00:10]} 3. Bb5 {[%emt 0:00:05]} a6 {[%emt 0:00:16]} 4. Ba4 {[%emt 0:00:02]} Nf6 {[%emt 0:00:15]} 5. O-O {[%emt 0:00:04]} Be7 {[%emt 0:00:30]} 6. Re1 {[%emt 0:00:07]} b5 {[%emt 0:00:08]} 7. Bb3 {[%emt 0:00:03]} O-O {[%emt 0:00:10]} 8. a4 {[%emt 0:00:07]} Rb8 {[%emt 0:02:00]} 9. axb5 {[%emt 0:00:29]} axb5 {[%emt 0:00:10]} 10. h3 {[%emt 0:00:08]} d6 {[%emt 0:03:35]} 11. c3 {[%emt 0:00:09]} Bd7 {[%emt 0:06:01]} 12. d4 {[%emt 0:09:19]} Ra8 {[%emt 0:12:29]} 13. Rxa8 {[%emt 0:06:46]} Qxa8 {[%emt 0:00:08] White is slightly better.} 14. Na3 {[%emt 0:01:21]} Qb7 {[%emt 0:11:10]} 15. Bg5 {[%emt 0:11:20]} Rd8 {[%emt 0:12:58]} 16. Ba2 {[%emt 0:07:55]} Be8 {[%emt 0:03:27]} 17. Nc2 {[%emt 0:07:38]} b4 {[%emt 0:05:31] [#] Hoping for ...b3.} 18. Ne3 {[%emt 0:16:08] Nf5 is the strong threat.} Nxe4 {[%emt 0:12:42]} 19. Bxe7 {[%emt 0:07:09]} Nxe7 {[%emt 0:00:27]} 20. Qc2 {[%emt 0:07:39]} bxc3 {[%emt 0:16:26]} 21. bxc3 {[%emt 0:00:30]} Qc6 {[%emt 0:03:27]} (21... Nf6 $11 {keeps the balance.}) 22. dxe5 $16 {[%emt 0:14:13]} Nxc3 $2 {[%emt 0:06:14]} (22... dxe5 $16 23. Ng4 Nc5 (23... Nxc3 $2 24. Ngxe5 Qa4 25. Bb3 $18)) 23. Ng5 $18 {[%emt 0:03:57]} g6 {[%emt 0:01:15] [#]} 24. Ng4 $2 {[%emt 0:00:19]} ({White must play} 24. Bc4 $1 $18 h6 25. Qxc3 hxg5 26. e6) 24... Nxa2 $11 {[%emt 0:01:59] The position is equal.} 25. Qxa2 {[%emt 0:00:29]} dxe5 {[%emt 0:02:42]} 26. Rxe5 {[%emt 0:02:52][%cal Oa2a1] Threatens to win with Qa1!} (26. Nh6+ Kg7 27. Nhxf7 (27. Ngxf7 $2 Ra8 $17) 27... Qd5 28. Qxd5 Rxd5 29. Nxe5 Bd7 $17) (26. Qb2 {simplifies} h5 27. Nh6+ Kg7 28. Nhxf7 Bxf7 29. Qxe5+ Qf6 30. Qxe7 Qxe7 31. Rxe7 Kf6 32. Rxf7+ Kxg5 33. Rxc7 Rd1+ 34. Kh2) 26... h5 $1 {[%emt 0:02:20]} 27. Nh6+ {[%emt 0:06:44] A dynamic duo of knights.} (27. Rxe7 $2 {too greedy.} Rd1+ (27... hxg4 28. Qa3 $17) 28. Kh2 Qd6+ (28... hxg4 29. Qa3 $11) 29. g3 Qxe7 $19) 27... Kg7 {[%emt 0:00:18]} 28. Nhxf7 {[%emt 0:00:57]} Rd1+ $1 {[%emt 0:03:04]} 29. Kh2 {[%emt 0:00:02]} Qf6 {[%emt 0:00:21][%cal Re8f7]} 30. Qe2 $1 {[%emt 0:05:57][%csl LRd1,LRe7] Chess con chili.} Bxf7 {[%emt 0:02:18]} 31. Rxe7 {[%emt 0:00:41]} Qxg5 {[%emt 0:00:36]} 32. Rxf7+ {[%emt 0:00:06] Weighted Error Value: White=0.28 (precise) /Black=0.31.  Loses game:     	---       	Black=1      Missed win:     	White=1     	---        Mistake:       	---       	Black=1      Inaccurate:     	White=1     	---        OK:         	White=9     	Black=6      Best:        	White=3     	Black=3      Strong:       	White=1     	Black=2} 1/2-1/2

[Event "German Bundesliga 2023-24"]
[Site "Germany"]
[Date "2024.02.23"]
[Round "9.35"]
[White "Beerdsen, Thomas"]
[Black "L'Ami, Erwin"]
[Result "0-1"]
[ECO "C54"]
[WhiteElo "2496"]
[BlackElo "2627"]
[Annotator "TA"]
[PlyCount "118"]
[EventDate "2023.10.20"]
[EventType "team-tourn"]
[EventCountry "GER"]
[SourceTitle "playchess.com"]
[Source "ChessBase"]
[SourceQuality "1"]
[TimeControl "40/6000+30:3000+30"]

{[%evp 46,118,-90,-67,486,0,0,-2,-4,-48,0,0,0,-2,0,-5,0,0,0,0,0,-8,-7,-20,0,-3,0,-18,0,-6,0,-2,-13,-3,-17,-52,-29,-52,-50,-50,-31,-32,-24,-33,0,-37,0,-61,-54,-54,-30,-32,-25,-37,-36,-59,-61,-500,-502,-515,-508,-512,-500,-512,-498,-512,-496,-506,-514,-556,-556,-579,-580,-571,-542]} 1. e4 {[%emt 0:00:04]} e5 {[%emt 0:00:13]} 2. Nf3 {[%emt 0:00:07]} Nc6 {[%emt 0:00:08]} 3. Bc4 {[%emt 0:00:07]} Bc5 {[%emt 0:00:36]} 4. c3 {[%emt 0:00:19]} Nf6 {[%emt 0:00:17]} 5. d4 {[%emt 0:00:20]} exd4 {[%emt 0:00:27]} 6. cxd4 {[%emt 0:00:09]} Bb4+ {[%emt 0:00:39]} 7. Nc3 {[%emt 0:00:07]} Nxe4 {[%emt 0:01:39]} 8. O-O {[%emt 0:01:26]} Bxc3 {[%emt 0:01:18]} 9. d5 {[%emt 0:00:41]} Bf6 {[%emt 0:02:49]} 10. Re1 {[%emt 0:00:58]} Ne7 {[%emt 0:00:40]} 11. Rxe4 {[%emt 0:00:25]} d6 {[%emt 0:06:06] C54: Giuoco Piano: 4 c3 Nf6, main lines with 5 d4 and 5 d3.} 12. Rf4 {[%emt 0:00:10]} Ng6 {[%emt 0:02:40]} 13. Re4+ {[%emt 0:01:49]} Ne7 {[%emt 0:08:07]} 14. Rf4 {[%emt 0:00:21]} Ng6 {[%emt 0:02:03]} 15. Re4+ {[%emt 0:00:32]} Be7 {[%emt 0:06:33]} 16. h4 $146 {[%emt 0:32:55]} ({Predecessor:} 16. Bg5 O-O 17. Bxe7 Nxe7 18. Qd4 Ng6 19. Re3 Bd7 20. h4 Re8 21. Rxe8+ Bxe8 22. h5 Nf8 23. h6 gxh6 24. Rc1 {½-½ Cleto,D (2288)-Larwinski,P (2285) FICGS W-ch st1 gM 01 email 2018 (1)}) 16... O-O {[%emt 0:09:51]} 17. h5 {[%emt 0:02:33]} Ne5 {[%emt 0:05:41]} 18. Nxe5 {[%emt 0:05:52]} dxe5 {[%emt 0:00:08]} 19. h6 {[%emt 0:00:40]} Qd6 {[%emt 0:09:21]} 20. hxg7 {[%emt 0:02:52]} Re8 {[%emt 0:00:21]} 21. Qh5 {[%emt 0:12:24]} Qg6 {[%emt 0:01:18]} 22. Rxe5 {[%emt 0:12:39]} Qxh5 {[%emt 0:07:19]} 23. Rf5 {[%emt 0:00:12] [#]} Qg5 $2 (23... Qd1+ $3 {[%mdl 512] mates} 24. Bf1 Bxf5 25. b3 Qd4 (25... Kxg7 $2 26. Bb2+ Bf6 27. Bxf6+ Kxf6 28. Rxd1 $19) (25... Qxd5 $2 26. Be3 $19) 26. Rb1 Bxb1 27. b4 Qd1 (27... Kxg7 $2 28. Be3 $19) 28. Bf4 Bxb4 (28... Qxd5 $2 29. a4 $19) 29. Kh2) 24. Rxg5 $17 {[%emt 0:00:30] [#]} Bg4 $2 {[%emt 0:02:41][%mdl 8192]} (24... Bxg5 $1 $15 {stays ahead.} 25. Bxg5 Kxg7) 25. Re5 $2 {[%emt 0:09:06]} (25. Rxg4 $18 h5 26. Re4) 25... Bf6 $11 {[%emt 0:02:27]} 26. Rxe8+ {[%emt 0:01:50]} Rxe8 {[%emt 0:00:15]} 27. Be3 {[%emt 0:07:50]} Bf5 {[%emt 0:08:22]} (27... b6 $1 $15) 28. Rd1 $11 {[%emt 0:05:47]} Bxb2 {[%emt 0:01:44]} 29. Bxa7 {[%emt 0:00:46]} Kxg7 {[%emt 0:08:39]} 30. Be3 {[%emt 0:02:05]} Be5 {[%emt 0:00:36]} 31. Bb3 {[%emt 0:01:34]} Bd6 {[%emt 0:04:01]} 32. Rc1 {[%emt 0:02:55]} b6 {[%emt 0:00:41]} 33. Rc4 {[%emt 0:02:27]} Re4 {[%emt 0:08:40]} 34. Rc3 {[%emt 0:03:47]} Kg6 {[%emt 0:01:59]} 35. Rc6 {[%emt 0:00:40]} f6 {[%emt 0:01:45]} 36. Kf1 {[%emt 0:00:53]} Rh4 {[%emt 0:02:03]} 37. Ke2 {[%emt 0:00:23]} Bd7 {[%emt 0:00:35]} 38. Rc1 {[%emt 0:00:05]} h5 {[%emt 0:04:34]} 39. g3 {[%emt 0:00:58]} Rh2 {[%emt 0:01:09]} 40. Kd3 {[%emt 0:00:39]} h4 {[%emt 0:01:13]} 41. gxh4 {[%emt 0:50:17]} Rxh4 {[%emt 0:50:32]} 42. Kd2 {[%emt 0:00:00]} Bf5 {[%emt 0:00:00]} 43. Rc6 {[%emt 0:00:00]} Be5 {[%emt 0:00:00]} 44. Rc1 {[%emt 0:00:00]} Bd6 {[%emt 0:00:00]} 45. Rc6 {[%emt 0:00:00]} Bd7 {[%emt 0:00:00]} 46. Rc1 {[%emt 0:00:00]} Bb5 {[%emt 0:00:00]} 47. Kc3 {[%emt 0:00:00]} Be5+ {[%emt 0:00:00]} 48. Kd2 {[%emt 0:00:00]} Kg7 {[%emt 0:00:00]} 49. Rg1+ {[%emt 0:00:00]} Kf8 {[%emt 0:00:00]} 50. Rg6 {[%emt 0:00:00]} Ke7 {[%emt 0:00:00]} 51. Bg5 $2 {[%emt 0:00:00][%mdl 8192] [#]} (51. Rh6 $15 Rb4 52. Kc1) 51... Rd4+ $1 $19 {[%emt 0:00:00]} ({Stronger than} 51... fxg5 52. Re6+ Kd8 53. Rxe5 $11) 52. Ke3 {[%emt 0:00:00]} Kf7 {[%emt 0:00:00]} (52... fxg5 53. Re6+ Kd7 54. Rxe5 Rd3+ 55. Ke4 $11) 53. Bxf6 {[%emt 0:01:22]} Rd3+ {[%emt 0:00:00]} ({Not} 53... Kxg6 54. Bxe5 Rd3+ 55. Ke4 $11) 54. Ke4 {[%emt 0:00:06]} Bxf6 {[%emt 0:00:00]} ({Worse is} 54... Kxg6 55. Bxe5 Rd2 56. Bxc7 $14) 55. Rg1 {[%emt 0:00:15]} Rd4+ {[%emt 0:00:00]} 56. Ke3 {[%emt 0:00:06]} Ke7 {[%emt 0:00:00]} 57. Rh1 {[%emt 0:00:07]} Rh4 {[%emt 0:00:00]} 58. Rg1 {[%emt 0:00:37]} Bd4+ {[%emt 0:00:00]} 59. Kf3 {[%emt 0:00:10]} Rh3+ {[%emt 0:00:00]} 0-1

[Event "German Bundesliga 2023-24"]
[Site "Germany"]
[Date "2024.02.23"]
[Round "9.36"]
[White "Andersen, Mads"]
[Black "Feygin, Michael"]
[Result "1-0"]
[ECO "C05"]
[WhiteElo "2606"]
[BlackElo "2470"]
[Annotator "TA"]
[PlyCount "102"]
[EventDate "2023.10.20"]
[EventType "team-tourn"]
[EventCountry "GER"]
[SourceTitle "playchess.com"]
[Source "ChessBase"]
[SourceQuality "1"]
[TimeControl "40/6000+30:3000+30"]

{[%evp 29,102,77,100,78,125,121,210,213,204,210,216,225,218,230,305,284,332,295,491,491,520,529,498,378,359,361,380,391,570,554,465,451,454,448,1049,595,593,409,568,0,883,892,778,326,404,395,485,455,612,408,536,507,738,556,921,725,1590,1439,1844,1823,29967,29969,29968,29970,29969,29969,12824,12792,29971,29973,29972,29975,29979,29976,29987]} 1. e4 {[%emt 0:00:05]} e6 {[%emt 0:00:05]} 2. d4 {[%emt 0:00:10]} d5 {[%emt 0:00:04]} 3. Nd2 {[%emt 0:00:19]} Nf6 {[%emt 0:00:06]} 4. e5 {[%emt 0:00:08]} Nfd7 {[%emt 0:00:05]} 5. c3 {[%emt 0:00:25]} c5 {[%emt 0:00:06]} 6. f4 {[%emt 0:00:10]} Nc6 {[%emt 0:00:08]} 7. Ndf3 {[%emt 0:00:11]} Qb6 {[%emt 0:00:08]} 8. a3 $1 {[%emt 0:00:24][%mdl 4] is more profitable than 8.g3 at the moment.} a5 {[%emt 0:00:16]} 9. b3 {[%emt 0:00:44] C05: French Tarrasch: 3...Nf6 4 e5 Nfd7, 5 f4 and 5 Bd3 sidelines.} Be7 {[%emt 0:00:13]} 10. h4 {[%emt 0:00:25]} Qc7 {[%emt 0:00:09]} 11. Be3 {[%emt 0:12:14]} b6 {[%emt 0:41:52]} 12. Kf2 $5 $146 {[%emt 0:16:03][%mdl 8] An interesting novelty.} ({Predecessor:} 12. Nh3 cxd4 13. cxd4 Ndb8 14. Bd3 h5 15. Qc2 Qd7 16. f5 exf5 17. Nf4 Ra7 18. O-O {½-½ Motwani,P (2505)-Dgebuadze,A (2550) BEL-chT 0001 2000 (9)}) 12... Bb7 {[%emt 0:06:52]} 13. Bd3 {[%emt 0:05:16]} h6 {[%emt 0:03:52]} 14. Ne2 {[%emt 0:04:40]} O-O-O {[%emt 0:08:56]} 15. h5 {[%emt 0:07:12]} f6 {[%emt 0:08:15]} 16. Kg1 {[%emt 0:05:58]} Rhf8 {[%emt 0:03:32]} (16... c4 $142) 17. Rh3 {[%emt 0:05:06]} fxe5 {[%emt 0:09:06]} (17... c4 $16) 18. fxe5 $18 {[%emt 0:00:31]} (18. dxe5 Kb8) (18. Nxe5 $6 Bd6 $16) 18... Ndxe5 {[%emt 0:00:14]} 19. dxe5 {[%emt 0:01:15]} Nxe5 {[%emt 0:00:29]} 20. Nxe5 {[%emt 0:13:52]} Qxe5 {[%emt 0:00:09]} 21. Qd2 {[%emt 0:00:46]} d4 {[%emt 0:12:27]} 22. cxd4 {[%emt 0:04:03]} cxd4 {[%emt 0:00:35]} 23. Rc1+ {[%emt 0:05:00]} Bc5 $2 {[%emt 0:00:12]} (23... Kb8 {is a better defense.} 24. Bf4 Rxf4 25. Qxf4 Qxf4 26. Nxf4 e5) 24. Bf4 $18 {[%emt 0:00:21]} Qd5 {[%emt 0:01:27]} 25. Rg3 {[%emt 0:00:32]} e5 {[%emt 0:09:31]} 26. Bxe5 {[%emt 0:00:25]} Qxe5 {[%emt 0:00:50]} 27. b4 {[%emt 0:00:51]} axb4 {[%emt 0:00:59]} 28. axb4 {[%emt 0:00:02]} Rd7 {[%emt 0:02:56]} (28... Rd5 $142 29. bxc5 bxc5) 29. bxc5 $18 {[%emt 0:01:05]} bxc5 {[%emt 0:00:01]} 30. Qa5 {[%emt 0:08:02]} Rc7 {[%emt 0:00:01]} 31. Ba6 {[%emt 0:00:43]} Rf5 {[%emt 0:00:03]} (31... Bxa6 $142 32. Qxa6+ Kd7) 32. Bxb7+ {[%emt 0:03:26]} Rxb7 {[%emt 0:00:27]} 33. Qa8+ {[%emt 0:07:31]} Kc7 {[%emt 0:00:04]} 34. Qa5+ $2 {[%emt 0:03:03]} ({White should play} 34. Qa6 $18 {[%cal Oc1c5] White wants to mate with Rxc5+!} Rb2 35. Qa5+ Kb7 36. Ra3 (36. Re1 Rb4 $18)) 34... Kd7 $2 {[%emt 0:01:58][%mdl 8192]} (34... Kc8 $11 35. Rf3 Rxf3) 35. Qa6 $18 {[%emt 0:01:41]} Rc7 {[%emt 0:00:08]} 36. Qg6 {[%emt 0:01:23]} (36. Rb1 $142) 36... Rg5 $18 {[%emt 0:01:10]} 37. Qf7+ {[%emt 0:01:11]} Kc6 {[%emt 0:01:01]} 38. Rxg5 {[%emt 0:00:58]} hxg5 {[%emt 0:00:29]} 39. Qf3+ {[%emt 0:00:02]} Kd7 {[%emt 0:00:21]} 40. Kh1 {[%emt 0:01:32]} Ke7 {[%emt 0:00:39]} 41. Ng3 {[%emt 0:06:50]} Kd7 {[%emt 0:28:41]} 42. Nf5 {[%emt 0:08:40]} Rc6 {[%emt 0:10:12]} 43. Nxd4 {[%emt 0:02:42]} Qxd4 {[%emt 0:06:56]} 44. Rd1 {[%emt 0:00:14]} Rd6 {[%emt 0:00:04]} 45. Rxd4 {[%emt 0:00:14]} cxd4 {[%emt 0:00:02]} 46. Qf7+ {[%emt 0:04:53]} Kc6 {[%emt 0:00:20]} 47. Qxg7 {[%emt 0:00:26]} d3 {[%emt 0:00:04]} 48. Qc3+ {[%emt 0:00:13]} (48. Qxg5 d2 49. Kh2 d1=Q $19 (49... d1=R $2 {perishes.} 50. h6 $18)) 48... Kb5 {[%emt 0:02:12]} 49. Qd2 {[%emt 0:00:24]} Kc4 {[%emt 0:00:30]} 50. Kg1 {[%emt 0:00:15]} g4 {[%emt 0:05:34]} 51. Kf2 {[%emt 0:00:29]} Kd5 {[%emt 0:00:58]} 1-0

[Event "German Bundesliga 2023-24"]
[Site "Germany"]
[Date "2024.02.23"]
[Round "9.37"]
[White "Hausrath, Daniel"]
[Black "Ganguly, Surya Shekhar"]
[Result "1/2-1/2"]
[ECO "A30"]
[WhiteElo "2462"]
[BlackElo "2578"]
[Annotator "TA"]
[PlyCount "42"]
[EventDate "2023.10.20"]
[EventType "team-tourn"]
[EventCountry "GER"]
[SourceTitle "playchess.com"]
[Source "ChessBase"]
[SourceQuality "1"]
[TimeControl "40/6000+30:3000+30"]

{[%evp 20,42,10,0,22,0,0,-8,-18,-12,0,0,0,-15,0,0,0,0,0,0,0,0,0,0,0]} 1. Nf3 {[%emt 0:00:04]} Nf6 {[%emt 0:00:13]} 2. g3 {[%emt 0:00:42]} c5 {[%emt 0:00:16]} 3. c4 {[%emt 0:00:59]} Nc6 {[%emt 0:00:41]} 4. Bg2 {[%emt 0:00:28]} d5 {[%emt 0:00:33]} 5. cxd5 {[%emt 0:00:59]} Nxd5 {[%emt 0:00:07]} 6. d4 {[%emt 0:01:29]} cxd4 {[%emt 0:00:27]} 7. Nxd4 {[%emt 0:00:08]} Ndb4 {[%emt 0:00:04]} 8. Nxc6 {[%emt 0:01:01]} Qxd1+ {[%emt 0:00:16]} 9. Kxd1 {[%emt 0:00:02]} Nxc6 {[%emt 0:00:09]} 10. Bxc6+ {[%emt 0:00:28]} bxc6 {[%emt 0:00:05]} 11. Be3 {[%emt 0:00:07] The position is equal.} e5 {[%emt 0:00:52]} 12. Nc3 {[%emt 0:13:15]} Be6 {[%emt 0:02:24]} 13. Kc2 {[%emt 0:13:49]} Bf5+ {[%emt 0:07:29]} 14. Kc1 {[%emt 0:01:44]} a5 {[%emt 0:01:25]} 15. Na4 {[%emt 0:10:28]} Rb8 {[%emt 0:02:35][%cal Oc6c5]} 16. Rd1 {[%emt 0:11:17]} Rb4 {[%emt 0:02:40]} 17. b3 {[%emt 0:07:05]} Rxa4 $1 {[%emt 0:01:33]} 18. bxa4 {[%emt 0:00:40]} Ba3+ {[%emt 0:00:06]} 19. Kd2 {[%emt 0:00:05] Bb6 is the strong threat.} Bb4+ {[%emt 0:01:14]} 20. Kc1 {[%emt 0:00:07] [#] Kb2 would now be deadly.} Ba3+ {[%emt 0:03:11] This pair of bishops is nice.} 21. Kd2 {[%emt 0:00:18]} Bb4+ {[%emt 0:00:05] An uneventful encounter.   Weighted Error Value: White=0.08 (flawless) /Black=0.05 (flawless) .  OK:         	White=2     	Black=3      Best:        	---       	Black=2      Strong:       	---       	Black=1} 1/2-1/2

[Event "German Bundesliga 2023-24"]
[Site "Germany"]
[Date "2024.02.23"]
[Round "9.38"]
[White "Nikolic, Predrag"]
[Black "Saltaev, Mihail"]
[Result "1-0"]
[ECO "D58"]
[WhiteElo "2531"]
[BlackElo "2441"]
[Annotator "TA"]
[PlyCount "74"]
[EventDate "2023.10.20"]
[EventType "team-tourn"]
[EventCountry "GER"]
[SourceTitle "playchess.com"]
[Source "ChessBase"]
[SourceQuality "1"]
[TimeControl "40/6000+30:3000+30"]

{[%evp 21,74,0,0,0,0,-7,0,-12,0,-20,0,0,-2,-2,14,8,11,13,20,15,0,6,8,7,45,37,40,27,41,35,39,28,34,48,269,267,253,50,55,48,40,43,54,56,56,48,63,63,63,34,29,25,24,26,38]} 1. d4 {[%emt 0:00:06]} d5 {[%emt 0:00:06]} 2. c4 {[%emt 0:00:07]} e6 {[%emt 0:00:04]} 3. Nc3 {[%emt 0:00:12]} Nf6 {[%emt 0:00:07]} 4. Bg5 {[%emt 0:00:32]} Be7 {[%emt 0:00:13]} 5. e3 {[%emt 0:00:12]} h6 {[%emt 0:00:11]} 6. Bh4 {[%emt 0:00:14]} O-O {[%emt 0:00:18]} 7. Nf3 {[%emt 0:00:34]} b6 {[%emt 0:00:45]} 8. Rc1 {[%emt 0:00:45]} Bb7 {[%emt 0:00:46]} 9. Bxf6 {[%emt 0:00:23]} Bxf6 {[%emt 0:00:33]} 10. cxd5 {[%emt 0:00:08]} exd5 {[%emt 0:00:49]} 11. Be2 {[%emt 0:00:12]} Qe7 {[%emt 0:00:50]} 12. O-O {[%emt 0:00:13]} Rd8 {[%emt 0:00:44]} 13. Re1 {[%emt 0:02:44]} c5 {[%emt 0:01:26]} 14. dxc5 {[%emt 0:02:46] The position is equal.} bxc5 {[%emt 0:00:26]} 15. Qb3 {[%emt 0:00:18]} c4 {[%emt 0:04:57]} 16. Qc2 {[%emt 0:07:35]} a5 {[%emt 0:06:12]} 17. b3 {[%emt 0:16:54]} cxb3 {[%emt 0:14:44]} 18. Qxb3 {[%emt 0:00:43]} Qb4 {[%emt 0:00:27]} 19. Red1 {[%emt 0:03:48]} Na6 {[%emt 0:10:07]} 20. Nb5 {[%emt 0:06:47]} (20. Nxd5 $2 {perishes.} Rxd5 21. Nd4 Qxb3 22. axb3 Rdd8 $19) 20... Qxb3 {[%emt 0:17:35]} 21. axb3 {[%emt 0:00:09]} Nb4 {[%emt 0:02:57]} 22. Nfd4 {[%emt 0:01:07]} a4 {[%emt 0:10:21]} 23. Rc7 {[%emt 0:11:40]} Bc8 {[%emt 0:03:51]} 24. bxa4 {[%emt 0:03:25]} Rxa4 {[%emt 0:00:31]} 25. Rb1 {[%emt 0:01:17] [#] Bd1 is the strong threat.} Na6 {[%emt 0:01:06]} 26. Ra7 {[%emt 0:02:09] Threatens to win with Rc1.} Nc5 {[%emt 0:02:09]} 27. Rc1 {[%emt 0:10:50]} Rxa7 {[%emt 0:06:35]} ({Better is} 27... Bxd4 $1 $14 28. exd4 (28. Rxa4 Bxe3 29. fxe3 Nxa4 $15) 28... Nb3 29. Rxc8 Rxc8 30. Rxa4 Rc1+ 31. Bf1 Nd2 32. Ra8+ Kh7) 28. Nxa7 $18 {[%emt 0:00:09] A dynamic duo of knights.} Ba6 {[%emt 0:14:54]} 29. Rxc5 $2 {[%emt 0:03:21] [#]} ({White has to play} 29. Nac6 $18 Bxe2 30. Nxd8 (30. Rxc5 Bxd4 31. Nxd4 Bc4 $14) (30. Nxe2 Nb3 $14)) 29... Bxd4 $14 {[%emt 0:01:44]} 30. exd4 {[%emt 0:00:04]} Bxe2 $18 {[%emt 0:00:16][%mdl 4096] Endgame. KRB-KRN} 31. Nc6 {[%emt 0:00:03]} Re8 {[%emt 0:01:35]} 32. Rxd5 {[%emt 0:01:47]} Bb5 {[%emt 0:05:50]} 33. Ne5 {[%emt 0:00:38]} (33. Rxb5 $2 Re1#) 33... Bc6 {[%emt 0:02:08]} 34. Rc5 {[%emt 0:12:43]} (34. Nxc6 $2 Re1#) 34... f6 {[%emt 0:00:06]} 35. Nd3 {[%emt 0:00:06]} (35. Nxc6 $2 Re1#) 35... Be4 {[%emt 0:00:15]} 36. Nf4 {[%emt 0:00:15]} g5 {[%emt 0:02:00]} 37. Nh5 {[%emt 0:00:12]} Kf7 {[%emt 0:00:00] Weighted Error Value: White=0.17 (very precise) /Black=0.15 (very precise) .  Loses game:     	---       	Black=1      Missed win:     	White=1     	---        Inaccurate:     	White=1     	Black=1      OK:         	White=10    	Black=13     Best:        	White=1     	Black=3} 1-0